Cogmind - Beta 14 @@@ ROGUE MODE // 2024.08.20 @ 10:39:42 Player: TheProctologist Result: Destroyed by NG-XNB(R) with Subdweller Machine Gun Performance ------------- Evolutions (0) 0 Regions Visited (2) 400 Robots Destroyed (27) 135 Value Destroyed (527) 527 Prototype IDs (0) 0 Alien Tech Used (0) 0 Bonus (0) 0 TOTAL SCORE: 1062 Bonus ------- None Cogmind --------- Core Integrity 0/250 Matter 290/300 Energy 59/100 System Corruption 0% Temperature Cool (0) Movement Treading (240) Ox1 Location -10/Subcaves Parts ------- > --- POWER (1) -------- (None) > --- PROPULSION (2) --- Light Treads > --- UTILITY (2) ------ Large Storage Unit Structural Scanner > --- WEAPON (2) ------- Battle Cannon > --- INVENTORY (15) --- Ion Engine Aluminum Leg Large Matter Pod (144) Improved Terrain Scanner Light Assault Rifle Datajack Peak State ------------ > --- POWER ------------ Light Ion Engine > --- PROPULSION ------- Light Treads Light Treads > --- UTILITY ---------- Small Storage Unit Improved Terrain Scanner > --- WEAPON ----------- EM Pulse Gun Light Assault Rifle > --- INVENTORY -------- Ion Engine Light Ion Engine Aluminum Leg Seismic Detector Light Assault Rifle Mining Laser [Rating: 9] Favorites ----------- Power Light Ion Engine Engine Light Ion Engine Propulsion Light Treads Treads Light Treads Leg Aluminum Leg Utility Structural Scanner Device Structural Scanner Storage Large Storage Unit Weapon Light Assault Rifle Energy Gun EM Pulse Gun Ballistic Gun Light Assault Rifle Ballistic Cannon Battle Cannon Special Weapon Mining Laser Build | -11 -10 -10 ------- Run | Yrd Mat Sub Slots Evolved . | . . . Power . | . . . Propulsion . | . . . Utility . | . . . Weapon . | . . . Parts Attached 24 | 10 9 5 Power 2 | 1 1 . Engine 2 | 1 1 . Core . | . . . Reactor . | . . . Propulsion 8 | 3 3 2 Treads 7 | 2 3 2 Leg 1 | 1 . . Wheel . | . . . Hover . | . . . Flight . | . . . Utility 6 | 4 2 . Device 4 | 3 1 . Storage 2 | 1 1 . Processor . | . . . Hackware . | . . . Protection . | . . . Artifact . | . . . Weapon 8 | 2 3 3 Energy Gun 1 | 1 . . Energy Cannon . | . . . Ballistic Gun 4 | 1 3 . Ballistic Cannon 2 | . . 2 Launcher . | . . . Special Weapon 1 | . . 1 Impact Weapon . | . . . Slashing Weapon . | . . . Piercing Weapon . | . . . Special Melee Weapon . | . . . Unidentified Prototypes . | . . . Parts Lost 9 | . 2 7 Power 2 | . 1 1 Propulsion 3 | . . 3 Utility . | . . . Weapon 4 | . 1 3 Highest Loss Streak 7 | . 1 7 To Critical Strikes . | . . . Average Slot Usage (%) 97 | . 97 95 Engine 12 | . 12 11 Treads 27 | . 28 26 Device 14 | . 14 14 Storage 14 | . 14 14 Energy Gun 1 | . 1 . Ballistic Gun 26 | . 26 26 Peak Build Rating 9 | 8 9 8 Average Rating 7 | 5 7 7 On Entrance 5 | . 8 8 Naked Turns . | . . . Heaviest Build 29 | 12 29 28 Greatest Support 40 | 40 40 40 Greatest Overweight (x) 3 | 3 . 1 Average Overweight (x) . | . . . Largest Inventory Capacity 15 | 8 15 15 Average Capacity 12 | 7 13 15 Most Carried 9 | 8 9 8 Average Carried 7 | 5 8 7 Final Capacity 15 | 8 15 15 Final Carried 8 | 7 8 6 Class Distribution -------------------- 100% | Mutant Dominant Class ---------------- Mutant | -10/Materials Mutant | -10/Subcaves Resources | -11 -10 -10 ----------- Run | Yrd Mat Sub Matter Collected 785 | 278 453 54 Remotely . | . . . Salvage Created 848 | 160 590 98 Parts 67 | 11 49 7 Haulers Intercepted 2 | . 2 . Recyclers Shooed 2 | . 2 . Parts Field Recycled . | . . . Retrieved Matter . | . . . Parts Self-Destructed 4 | . . 4 Prevented . | . . . Kills | -11 -10 -10 ------- Run | Yrd Mat Sub Combat Hostiles Destroyed 19 | . 17 2 Guns 19 | . 17 2 Classes Destroyed 8 | 2 5 1 Worker 1 | . 1 . Tunneler 3 | 3 . . Hauler 2 | . 2 . Recycler 1 | 1 . . Operator 1 | . 1 . Swarmer 8 | . 8 . Grunt 9 | . 9 . Subdweller 2 | . . 2 Best Kill Streak 3 | 3 3 2 Combat Bots Only 3 | . 3 2 Max Kills in Single Turn 1 | 1 1 1 Gunslinging . | . . . Exploded . | . . . Melee . | . . . Uniques/NPCs Destroyed . | . . . Combat | -11 -10 -10 -------- Run | Yrd Mat Sub Hostile Shots Fired 109 | . 85 24 Missed 30 | . 28 2 Damage Taken 1212 | 35 610 567 Core 264 | . 116 148 Absorbed by Shields . | . . . Core Remaining (%) 100 | 100 . . Volleys Fired 95 | 11 70 14 Largest 2 | 2 2 2 Hottest 60 | 60 40 40 Shots Fired 182 | 22 140 20 Gun 181 | 22 140 19 Cannon 1 | . . 1 Launcher . | . . . Special . | . . . Kinetic 171 | 11 140 20 Thermal . | . . . Explosive . | . . . Electromagnetic 11 | 11 . . Robot Hit Streak 15 | 3 9 15 Robot Miss Streak 3 | 2 3 1 Penetration Max . | . . . Secondary Targets 3 | . 3 . Max Gunslinging Chain 1 | . 1 . Shots Hit Robots 123 | 10 96 17 Core Hits 50 | 6 38 6 Critical Kills 1 | . 1 . Critical Parts Destroyed . | . . . Critical Strikes 1 | . 1 . Destroy 1 | . 1 . Melee Attacks . | . . . Impact . | . . . Slashing . | . . . Piercing . | . . . Sneak Attacks . | . . . Combat Hostiles . | . . . Follow-up Attacks . | . . . Damage Inflicted 1283 | 189 952 142 Guns 1184 | 108 934 142 Cannons . | . . . Explosions 81 | 81 . . Melee . | . . . Ramming 18 | . 18 . Kinetic 1110 | 34 934 142 Thermal 81 | 81 . . Explosive . | . . . Electromagnetic 74 | 74 . . Impact . | . . . Slashing . | . . . Piercing . | . . . Highest Corruption . | . . . Average Corruption . | . . . Corruption Purged . | . . . Corruption Blocked . | . . . Overload Shots . | . . . Overflow Damage 14 | 14 . . Projectiles . | . . . Explosions 14 | 14 . . Melee . | . . . Knockbacks . | . . . Impact . | . . . Kinetic . | . . . Secondary . | . . . Self-Inflicted Damage 35 | 35 . . Shots 1 | 1 . . Rammed 6 | . 6 . Targets Rammed 6 | . 6 . Kicked . | . . . Crushed . | . . . Highest Temperature 52 | 52 22 . Average Temperature 18 | 30 7 . Received Heat Transfer 282 | . 210 72 Siege Activations . | . . . Robots Corrupted . | . . . Combat Hostiles . | . . . Parts Fried . | . . . Impact Corruptions . | . . . Robots Melted . | . . . Combat Hostiles . | . . . Parts Melted . | . . . Heat Transferred 150 | 150 . . Parts Sabotaged . | . . . Parts Stolen . | . . . Parts Stripped . | . . . Power Chain Reactions 1 | 1 . . Alert | -11 -10 -10 ------- Run | Yrd Mat Sub Peak Influence 284 | 20 284 . Initial 13 | . 13 . Average 110 | 12 130 . Maximum Alert Level 1 | . 1 . Low Security (%) 80 | 100 76 . Level 1 19 | . 23 . Level 2 . | . . . Level 3 . | . . . Level 4 . | . . . Level 5 . | . . . High Security . | . . . Max Security . | . . . Squads Dispatched 4 | . 4 . Investigation 3 | . 3 . Extermination . | . . . Reinforcement 1 | . 1 . Assault . | . . . Garrison . | . . . Intercept . | . . . Searches Triggered . | . . . Construction Impeded . | . . . Haulers Reinforced . | . . . Active Scanning Responses . | . . . Cargo Convoy Interrupts . | . . . Stealth | -11 -10 -10 --------- Run | Yrd Mat Sub Distress Signals . | . . . Communications Jammed . | . . . Distress Signals . | . . . Times Spotted 34 | . 29 5 Peak Tracking Total 4 | . 4 4 Tactical Retreats 2 | . 1 1 Traps | -11 -10 -10 ------- Run | Yrd Mat Sub Traps Triggered 4 | . 4 . Indirectly . | . . . Trap Hack Attempts . | . . . Triggered . | . . . Disarmed . | . . . Reprogrammed . | . . . Reused . | . . . Traps Extracted . | . . . Installed . | . . . Triggered . | . . . Machines | -11 -10 -10 ---------- Run | Yrd Mat Sub Machines Disabled . | . . . Max in Single Turn . | . . . Machines Repaired . | . . . Machines Dismantled . | . . . Machines Sabotaged . | . . . Overloaded Fab Kills . | . . . Hacking | -11 -10 -10 --------- Run | Yrd Mat Sub Machines Accessed 2 | . 2 . Terminals 2 | . 2 . Fabricators . | . . . Repair Stations . | . . . Recycling Units . | . . . Scanalyzers . | . . . Garrison Access . | . . . Total Hacks 9 | . 9 . Successful 5 | . 5 . Failed 4 | . 4 . Catastrophic 2 | . 2 . Database Lockouts . | . . . Manual . | . . . Terminals 9 | . 9 . Fabricators . | . . . Repair Stations . | . . . Recycling Units . | . . . Scanalyzers . | . . . Garrison Access . | . . . Terminal Hacks 5 | . 5 . Record 3 | . 3 . Registered Components 1 | . 1 . Zone Layout 1 | . 1 . Fabricator Hacks . | . . . Repair Station Hacks . | . . . Recycling Unit Hacks . | . . . Scanalyzer . | . . . Garrison Access Hacks . | . . . Unauthorized Hacks . | . . . Terminals . | . . . Fabricators . | . . . Repair Stations . | . . . Recycling Units . | . . . Scanalyzers . | . . . Garrison Access . | . . . Data Cores Recovered . | . . . Used . | . . . Hacking Detections 2 | . 2 . Full Trace Events . | . . . Feedback Events . | . . . Feedback Blocked . | . . . Robot Schematics Acquired . | . . . Robots Built . | . . . Authchips . | . . . Time . | . . . Total Robot Build Rating . | . . . Part Schematics Acquired . | . . . Parts Built . | . . . Authchips . | . . . Time . | . . . Total Part Build Rating . | . . . Parts Repaired . | . . . Time . | . . . Parts Recycled . | . . . Recycled Matter . | . . . Retrieved Matter . | . . . Retrieved Components . | . . . Parts Scanalyzed . | . . . Part Schematics Acquired . | . . . Parts Damaged . | . . . Bothacking | -11 -10 -10 ------------ Run | Yrd Mat Sub Used RIF Installer . | . . . Robots Hacked . | . . . Non-combat . | . . . Combat . | . . . Robot Hacks Applied . | . . . Relay Couplers Released . | . . . Fabnet Peak Effective % . | . . . Robots Rewired . | . . . Allies Hacked . | . . . Hacks Repelled . | . . . Allies | -11 -10 -10 -------- Run | Yrd Mat Sub Total Allies . | . . . Largest Group . | . . . Highest-Rated Group . | . . . Highest-Rated Ally . | . . . Total Orders . | . . . Ally Attacks . | . . . Total Damage . | . . . Kills . | . . . Allies Corrupted . | . . . Allies Melted . | . . . Intel | -11 -10 -10 ------- Run | Yrd Mat Sub Robot Analysis Total . | . . . Derelict Logs Recovered . | . . . Drone Launches . | . . . Drone Recoveries . | . . . Exploration | -11 -10 -10 ------------- Run | Yrd Mat Sub Turns Passed 1877 | 282 1319 276 Spaces Moved 922 | 111 669 142 Core 11 | 11 . . Treads 907 | 96 669 142 Legs 4 | 4 . . Wheels . | . . . Hover . | . . . Flight . | . . . Fastest Speed 50 | 50 160 160 Average Speed 159 | 157 160 161 Slowest Speed 240 | 200 160 240 Overloaded Moves . | . . . Propulsion Burnouts . | . . . Robots Hopped . | . . . Cave-ins Triggered . | . . . Exploration Rate (%) 40 | 7 93 21 Regions Visited 2 Branch Regions 1 Pre-discovered Areas . | . . . Known Exits Taken . | . . . Unknown Exits Taken 2 | 1 1 . Scrap Searched . | . . . Spaces Dug . | . . . Terrain Destroyed 8 | 8 . . Melee . | . . . Projectile . | . . . AOE 8 | 8 . . Terrain Rammed . | . . . Walls Destroyed . | . . . Machines Disabled . | . . . Actions | -11 -10 -10 --------- Run | Yrd Mat Sub Total 1161 | 196 793 172 Wait 95 | 55 30 10 Move 920 | 110 668 142 Hop . | . . . Pick Up 11 | 6 5 . Fast Attach 11 | 8 1 2 Attach 7 | 1 3 3 Detach 5 | 3 1 1 Swap 6 | 1 5 . Drop 5 | 1 4 . Fire 95 | 11 70 14 Melee . | . . . Ram . | . . . Kick . | . . . Crush 6 | . 6 . Escape Stasis . | . . . Rewire . | . . . Trap . | . . . Miscellaneous . | . . . Route ------- -11/Scrapyard -10/Materials (discovered 5 exits: [*Mat x3] / [*Min] / [*Sub]) -10/Subcaves (discovered 1 exit: [*Mat]) History --------- Turn | Location | Event 16 | -11/Scrapyard | Discovered new exit (range 16) 283 | -11/Scrapyard | Entered Materials 304 | -10/Materials | Build established: Mutant 456 | -10/Materials | Discovered new exit (range 16) 536 | -10/Materials | Discovered new exit (range 9) 1005 | -10/Materials | Discovered new exit (range 8) 1212 | -10/Materials | Discovered new exit (range 5) 1313 | -10/Materials | Discovered new exit (range 18) 1602 | -10/Materials | Entered Subcaves 1821 | -10/Subcaves | Ambushed by Subdwellers from Twisted Machinery 1841 | -10/Subcaves | Core integrity fell below 50% 1871 | -10/Subcaves | Discovered new exit (range 9) 1875 | -10/Subcaves | Core integrity fell below 20% 1878 | -10/Subcaves | Ambushed by Subdweller buried in earth 1878 | -10/Subcaves | Destroyed by NG-XNB(R) with Subdweller Machine Gun Last Messages --------------- Machinery. 01837_ Lgt. Treads destroyed. 01839_ Ion Engine destroyed. 01846_ F2-6KS(R) destroyed. 01849_ Lgt. Assault Rifle destroyed. 01850_ Subatomizers dissect the Sub. Monowheel. 01853_ Lgt. Treads destroyed. 01857_ 07-5W9(R) affixes Scrap Shield Fragment to Scrap Shield. 01858_ Mining Laser destroyed. 01861_ 07-5W9(R) affixes Scrap Shield Fragment to Scrap Shield. 01864_ 07-5W9(R) destroyed. 01869_ Acquired Battle Cannon. 01871_ Acquired 54 matter. 01871_ EXIT=FOUND 01874_ Lgt. Treads destroyed. 01875_ Acquired Battle Cannon. 01876_ Battle Cannon destroyed. 01878_ Subatomizers dissect the Sub. Optics. Map ----- +----------------------------------------------------+ | ?????? ###??????? ##??????? | | ????? ## #### ???? ##??????? | | ?????# ### # ######## ###??????? | | ?????## ### ######### # ###### ###???????? | | ?????### ##### ######### # # ###????????? | | ????? ???### ##?????## # # ###?????? | | ?????????????# ##?????####### #####?????? | | ????????????? ???????####### # # # ##?????? | | ???????????? ????????????###### ### ##?????? | | ???????????? ????????????###### ### ##?????? | | ??????????? ####????????????????### # ##?????? | | ????????????#####????????????????## ## ###?????? | | ?????????????????????????????????### # ###?????? | | ????????????????????????#######?#### ### ###?????? | | ??????????????????????############# # ##?????? | | ??????????????????????#### # ##### ###?????? | | ??????????????????????## ### ##?????? | | ??????????????????????### # ## ###########?????? | | ??????????????????????### #################?????? | | ???????????????????###### ########??????????????? | | ???????????????????##### #####?????????????????? | | ???????????????????## R; # ##?????????????????? | | ???????????????????## ##?????????????????? | | ??????????????????### ##?????????????????? | | ??????????????????"##; ##?????????????????? | | ?????????????"# ??"# @ ##?????????????????? | | ?????????????## """ ! ##?????????????????? | | ?????????????### < ##?????????????????? | | ??????????????## # ##?????????????????? | | ??????????????### ## ;;##?????????????????? | | ??????????????### ?### R ###?????????????????? | | ???????????????###? "##?????????????????? | | ???????????????###?? ###?????????????????? | | ??????????????????? " " """ ###?????????????????? | | ??????????????????? "" ######??????????????????? | | ??????????????????"""" ""######??????????????????? | | ????????????????? ?? """#???????????????????????? | | ???????????????????? #####???????????????????????? | | ???????????????????? #####???????????????????????? | | ?????????????????????????????????????????????????? | | ?????????????????????????????????????????????????? | | ?????????????????????????????????????????????????? | | ?????????????????????????????????????????????????? | | ?????????????????????????????????????????????????? | | ?????????????????????????????????????????????????? | | ?????????????????????????????????????????????????? | | ?????????????????????????????????????????????????? | | ?????????????????????????????????????????????????? | | ?????????????????????????????????????????????????? | | ?????????????????????????????????????????????????? | +----------------------------------------------------+ Best States ------------- Heat Dissipation 25 Energy Generation 10 Energy Capacity 250 Matter Stores 300 Matter Capacity 300 Sight Range 16 Terrain Scan Range 16 Terrain Scan Density 10 Evasion (%) 40 Recoil Reduction 2 Item Schematics ----------------- None Robot Schematics ------------------ None Fabricated ------------ Nothing Alien Tech Used ----------------- None Achievements -------------- None Challenges ------------ None Game ------ Seed FocalDerelictMantle Manual? 0 Play Time 00:15:58 Cumulative 42.0 hours Start 2024.08.20 @ 10:24:57 End 2024.08.20 @ 10:39:42 Sessions 1 Manual Loads 0 Difficulty Rogue Special Mode None Game No. 55 Rogue 55 Adventurer 0 Explorer 0 Win Type - Total 0 Types 0/0/0/0/0/0/0/0/0 Lore% 14 Gallery% 24 Achievement% 23 Wizard Run 0 Options --------- Layout 1 ASCII 0 Keyboard 0 Movement Numpad Keybinds 0 Fullscreen 1 Font 32/SmallcapsGlow Map View 50x40 Zoom Use 20% Tactical HUD 1 Map Filters NONE Filters NONE Steam 1 RUN: 6bd82e89-3936-499b-988c-8285c76fc4ac